[Event "48th Indian U15-ch Open 2023"]
[Site "Jalgaon"]
[Date "2023.12.28"]
[Round "2.6"]
[White "Mrithyunjay Mahadevan"]
[Black "Vandan Alankar Sawai"]
[Result "1-0"]
[WhiteElo "1944"]
[BlackElo "1619"]
[PlyCount "113"]
[EventDate "2023.12.30"]
[EventType "swiss"]
[EventCountry "IND"]
[TimeControl "5400+30"]

1. c4 {[%emt 0:01:04]} e6 {[%emt 0:02:17]} 2. g3 {[%emt 0:00:06]} d5 {[%emt 0:00:39]} 3. Bg2 {[%emt 0:00:10]} Nf6 {[%emt 0:01:21]} 4. Nf3 {[%emt 0:00:19]} dxc4 {[%emt 0:05:06]} 5. Qa4+ {[%emt 0:02:04]} Bd7 {[%emt 0:01:32]} 6. Qxc4 {[%emt 0:00:28]} c5 {[%emt 0:01:22]} 7. Ne5 {[%emt 0:01:18]} Qc7 {[%emt 0:00:58]} 8. Nxd7 {[%emt 0:01:08]} Qxd7 {[%emt 0:01:39]} 9. O-O {[%emt 0:00:27]} Nc6 {[%emt 0:00:16]} 10. Nc3 {[%emt 0:00:53]} Be7 {[%emt 0:00:38]} 11. Qa4 {[%emt 0:03:02]} Nd5 {[%emt 0:03:39]} 12. Qg4 {[%emt 0:02:25]} h5 {[%emt 0:06:04]} 13. Qc4 {[%emt 0:04:46]} O-O-O {[%emt 0:02:59]} 14. a3 {[%emt 0:10:26]} Na5 {[%emt 0:16:14]} 15. Qd3 {[%emt 0:14:03]} c4 {[%emt 0:06:57]} 16. Qc2 {[%emt 0:01:30]} h4 {[%emt 0:02:49]} 17. Nxd5 {[%emt 0:02:25]} exd5 {[%emt 0:00:10]} 18. d3 {[%emt 0:00:32]} hxg3 {[%emt 0:01:10]} 19. hxg3 {[%emt 0:00:53]} Nb3 {[%emt 0:00:24]} 20. Rb1 {[%emt 0:00:49]} Nd4 {[%emt 0:00:17]} 21. Qd1 {[%emt 0:00:51]} Bc5 {[%emt 0:09:29]} 22. b4 {[%emt 0:09:10]} Qg4 {[%emt 0:07:30]} 23. Re1 {[%emt 0:00:30]} c3 {[%emt 0:00:36]} 24. Ra1 {[%emt 0:01:58]} c2 {[%emt 0:01:47]} 25. Qd2 {[%emt 0:00:18]} Bb6 {[%emt 0:00:40]} 26. Qg5 {[%emt 0:12:13]} Qxg5 {[%emt 0:10:49]} 27. Bxg5 {[%emt 0:00:09]} f6 {[%emt 0:00:04]} 28. Be3 {[%emt 0:00:52]} Nb3 {[%emt 0:00:12]} 29. Ra2 {[%emt 0:00:07]} d4 {[%emt 0:01:05]} 30. Rxc2+ {[%emt 0:00:09]} Kd7 {[%emt 0:00:17]} 31. Bc1 {[%emt 0:04:40]} Nxc1 {[%emt 0:01:22]} 32. Rexc1 {[%emt 0:00:06]} Rb8 {[%emt 0:00:07]} 33. Rc4 {[%emt 0:00:36]} f5 {[%emt 0:01:00]} 34. a4 {[%emt 0:00:07]} Rhc8 {[%emt 0:00:29]} 35. a5 {[%emt 0:00:07]} Bc7 {[%emt 0:00:25]} 36. Rxd4+ {[%emt 0:01:23]} Ke7 {[%emt 0:00:04]} 37. Rdc4 {[%emt 0:00:08]} Kd8 {[%emt 0:00:05]} 38. Bh3 {[%emt 0:01:15]} g6 {[%emt 0:00:14]} 39. g4 {[%emt 0:00:37]} Bd6 {[%emt 0:00:26]} 40. Rxc8+ {[%emt 0:00:09]} Rxc8 {[%emt 0:00:03]} 41. Rxc8+ {[%emt 0:00:06]} Kxc8 {[%emt 0:00:04]} 42. gxf5 {[%emt 0:00:06]} gxf5 {[%emt 0:00:04]} 43. Bxf5+ {[%emt 0:00:07]} Kd8 {[%emt 0:00:03]} 44. b5 {[%emt 0:00:10]} a6 {[%emt 0:00:06]} 45. bxa6 {[%emt 0:00:26]} bxa6 {[%emt 0:00:03]} 46. d4 {[%emt 0:00:07]} Bc7 {[%emt 0:00:08]} 47. Bd3 {[%emt 0:00:05]} Bxa5 {[%emt 0:00:04]} 48. Bxa6 {[%emt 0:00:06]} Bc3 {[%emt 0:00:04]} 49. e3 {[%emt 0:00:07]} Ke7 {[%emt 0:00:02]} 50. f4 {[%emt 0:00:08]} Kf6 {[%emt 0:00:07]} 51. Kf2 {[%emt 0:00:06]} Ba5 {[%emt 0:00:09]} 52. e4 {[%emt 0:00:06]} Bc3 {[%emt 0:00:08]} 53. Ke3 {[%emt 0:00:05]} Ke6 {[%emt 0:00:05]} 54. Bc8+ {[%emt 0:00:05]} Kd6 {[%emt 0:00:04]} 55. e5+ {[%emt 0:00:09]} Kd5 {[%emt 0:00:03]} 56. Bb7+ {[%emt 0:00:08]} Kc4 {[%emt 0:00:05]} 57. d5 {[%emt 0:00:06]} 1-0

[Event "48th Indian U15-ch Open 2023"]
[Site "Jalgaon"]
[Date "2023.12.28"]
[Round "2.7"]
[White "Soni Atharv"]
[Black "Samyak Dharewa"]
[Result "0-1"]
[WhiteElo "1605"]
[BlackElo "1939"]
[PlyCount "115"]
[EventDate "2023.12.30"]
[EventType "swiss"]
[EventCountry "IND"]
[TimeControl "5400+30"]
[WhiteClock "0:04:23"]
[BlackClock "0:35:43"]

1. e4 {[%emt 0:01:40]} c5 {[%emt 0:00:10]} 2. Nf3 {[%emt 0:00:05]} e6 {[%emt 0:00:08]} 3. d4 {[%emt 0:00:05]} cxd4 {[%emt 0:00:07]} 4. Nxd4 {[%emt 0:00:09]} a6 {[%emt 0:00:05]} 5. c4 {[%emt 0:00:09]} Nf6 {[%emt 0:00:15]} 6. Nc3 {[%emt 0:00:16]} Bb4 {[%emt 0:00:14]} 7. Bd3 {[%emt 0:03:31]} Qc7 {[%emt 0:00:30]} 8. O-O {[%emt 0:02:58]} Nc6 {[%emt 0:00:12]} 9. Nxc6 {[%emt 0:09:03]} dxc6 {[%emt 0:00:09]} 10. Qe2 {[%emt 0:05:34]} e5 {[%emt 0:01:22]} 11. Be3 {[%emt 0:19:37]} Ng4 {[%emt 0:08:33]} 12. Rac1 {[%emt 0:08:56]} Nxe3 {[%emt 0:05:58]} 13. Qxe3 {[%emt 0:00:23]} Be7 {[%emt 0:00:11]} 14. Na4 {[%emt 0:18:16]} Be6 {[%emt 0:00:37]} 15. Nc5 {[%emt 0:04:37]} Bxc5 {[%emt 0:05:34]} 16. Qxc5 {[%emt 0:00:05]} b6 {[%emt 0:05:47]} 17. Qe3 {[%emt 0:02:54]} c5 {[%emt 0:00:17]} 18. Rfd1 {[%emt 0:01:52]} O-O-O {[%emt 0:04:42]} 19. Be2 {[%emt 0:08:15]} Rd4 {[%emt 0:00:43]} 20. b3 {[%emt 0:09:21]} Rhd8 {[%emt 0:00:51]} 21. f3 {[%emt 0:02:15]} h6 {[%emt 0:04:14]} 22. a3 {[%emt 0:00:53]} Qe7 {[%emt 0:01:11]} 23. g3 {[%emt 0:00:26]} Qg5 {[%emt 0:00:24]} 24. Qxg5 {[%emt 0:00:17]} hxg5 {[%emt 0:00:02]} 25. Kf2 {[%emt 0:00:09]} Rh8 {[%emt 0:02:26]} 26. Kg2 {[%emt 0:00:36]} g4 {[%emt 0:05:23]} 27. fxg4 {[%emt 0:00:37]} Rxe4 {[%emt 0:00:36]} 28. Bf3 {[%emt 0:00:18]} Re3 {[%emt 0:00:15]} 29. Rd6 {[%emt 0:00:56]} e4 {[%emt 0:00:19]} 30. Bd1 {[%emt 0:00:19]} Kc7 {[%emt 0:01:29]} 31. Rd2 {[%emt 0:00:03]} Re1 {[%emt 0:01:00]} 32. Re2 {[%emt 0:00:28]} Rxd1 {[%emt 0:01:22]} 33. Rxd1 {[%emt 0:00:01]} Bxg4 {[%emt 0:00:10]} 34. Red2 {[%emt 0:00:20]} Bxd1 {[%emt 0:00:22]} 35. Rxd1 {[%emt 0:00:01]} Rd8 {[%emt 0:00:36]} 36. Rf1 {[%emt 0:00:16]} Rd7 {[%emt 0:01:41]} 37. Rf4 {[%emt 0:00:23]} Rd2+ {[%emt 0:04:59]} 38. Kg1 {[%emt 0:01:29]} e3 {[%emt 0:00:33]} 39. Kf1 {[%emt 0:01:03]} f6 {[%emt 0:01:11]} 40. Rg4 {[%emt 0:00:23]} g5 {[%emt 0:01:05]} 41. h4 {[%emt 0:00:12]} gxh4 {[%emt 0:00:26]} 42. gxh4 {[%emt 0:00:02]} Kd6 {[%emt 0:04:14]} 43. Rg3 {[%emt 0:01:28]} Rd3 {[%emt 0:01:37]} 44. Ke2 {[%emt 0:00:30]} Rxb3 {[%emt 0:00:10]} 45. h5 {[%emt 0:00:34]} Rb2+ {[%emt 0:01:03]} 46. Kxe3 {[%emt 0:00:16]} Rh2 {[%emt 0:00:06]} 47. Rg6 {[%emt 0:00:42]} Ke5 {[%emt 0:00:27]} 48. Rh6 {[%emt 0:00:15]} Rh3+ {[%emt 0:01:14]} 49. Kf2 {[%emt 0:00:29]} Rxa3 {[%emt 0:03:12]} 50. Rh8 {[%emt 0:00:10]} Kf5 {[%emt 0:02:53]} 51. Rb8 {[%emt 0:00:20]} Rb3 {[%emt 0:00:35]} 52. h6 {[%emt 0:00:19]} Kg6 {[%emt 0:00:28]} 53. Rf8 {[%emt 0:00:04]} Kxh6 {[%emt 0:00:32]} 54. Rxf6+ {[%emt 0:00:02]} Kg5 {[%emt 0:00:09]} 55. Rd6 {[%emt 0:00:05]} Kf4 {[%emt 0:00:13]} 56. Rd2 {[%emt 0:00:10]} Ke4 {[%emt 0:00:14]} 57. Ke2 {[%emt 0:00:03]} Rb4 {[%emt 0:00:25]} 58. Rc2 {[%emt 0:00:16]} 0-1

[Event "48th Indian U15-ch Open 2023"]
[Site "Jalgaon"]
[Date "2023.12.28"]
[Round "2.8"]
[White "Ankit Ray"]
[Black "Swastik Singhal"]
[Result "1/2-1/2"]
[WhiteElo "1898"]
[BlackElo "1611"]
[PlyCount "64"]
[EventDate "2023.12.30"]
[EventType "swiss"]
[EventCountry "IND"]
[TimeControl "5400+30"]

1. Nf3 {[%emt 0:00:06]} Nf6 {[%emt 0:00:17]} 2. g3 {[%emt 0:00:09]} d5 {[%emt 0:00:11]} 3. Bg2 {[%emt 0:00:08]} e6 {[%emt 0:00:20]} 4. O-O {[%emt 0:00:08]} Be7 {[%emt 0:00:14]} 5. c4 {[%emt 0:00:28]} O-O {[%emt 0:00:47]} 6. b3 {[%emt 0:00:06]} c5 {[%emt 0:01:00]} 7. cxd5 {[%emt 0:00:19]} Nxd5 {[%emt 0:01:46]} 8. Bb2 {[%emt 0:00:16]} Nc6 {[%emt 0:00:42]} 9. d4 {[%emt 0:00:37]} Bf6 {[%emt 0:05:02]} 10. e4 {[%emt 0:09:23]} Nb6 {[%emt 0:01:15]} 11. e5 {[%emt 0:00:38]} Be7 {[%emt 0:00:08]} 12. dxc5 {[%emt 0:00:09]} Bxc5 {[%emt 0:01:54]} 13. Qc2 {[%emt 0:00:29]} Qe7 {[%emt 0:02:39]} 14. a3 {[%emt 0:02:18]} Rd8 {[%emt 0:11:21]} 15. Nbd2 {[%emt 0:12:56]} Nd5 {[%emt 0:08:16]} 16. Rfd1 {[%emt 0:11:58]} h6 {[%emt 0:13:29]} 17. Ne4 {[%emt 0:06:55]} Bb6 {[%emt 0:00:00]} 18. h4 {[%emt 0:02:37]} Bc7 {[%emt 0:00:00]} 19. b4 {[%emt 0:02:47]} Bd7 {[%emt 0:00:02]} 20. Nc5 {[%emt 0:08:42]} b6 {[%emt 0:04:05]} 21. Rxd5 {[%emt 0:05:29]} exd5 {[%emt 0:10:05]} 22. Nxd7 {[%emt 0:00:14]} Qxd7 {[%emt 0:02:17]} 23. Rc1 {[%emt 0:00:05]} Bxe5 {[%emt 0:07:55]} 24. Bxe5 {[%emt 0:03:42]} Rac8 {[%emt 0:01:58]} 25. Qd2 {[%emt 0:00:36]} d4 {[%emt 0:06:13]} 26. Bf4 {[%emt 0:08:37]} d3 {[%emt 0:03:55]} 27. Be3 {[%emt 0:02:17]} Ne7 {[%emt 0:01:22]} 28. Rxc8 {[%emt 0:00:21]} Qxc8 {[%emt 0:00:17]} 29. Ne1 {[%emt 0:08:23]} Ng6 {[%emt 0:05:01]} 30. f4 {[%emt 0:03:03]} Qg4 {[%emt 0:02:00]} 31. Kf2 {[%emt 0:00:50]} Ne7 {[%emt 0:01:45]} 32. Be4 {[%emt 0:01:05]} Nf5 {[%emt 0:00:59]} 1/2-1/2

[Event "48th Indian U15-ch Open 2023"]
[Site "Jalgaon"]
[Date "2023.12.28"]
[Round "2.9"]
[White "Jihan Tejas Shah"]
[Black "Pritish Vashisht"]
[Result "1-0"]
[WhiteElo "1891"]
[BlackElo "1604"]
[PlyCount "120"]
[EventDate "2023.12.30"]
[EventType "swiss"]
[EventCountry "IND"]
[TimeControl "5400+30"]

1. d4 {[%emt 0:00:07]} Nf6 {[%emt 0:00:06]} 2. c4 {[%emt 0:00:06]} e6 {[%emt 0:00:09]} 3. Nc3 {[%emt 0:00:05]} Bb4 {[%emt 0:00:43]} 4. Qc2 {[%emt 0:00:08]} O-O {[%emt 0:01:27]} 5. e4 {[%emt 0:00:04]} c5 {[%emt 0:03:03]} 6. dxc5 {[%emt 0:02:25]} Nc6 {[%emt 0:06:56]} 7. Nf3 {[%emt 0:02:04]} Bxc5 {[%emt 0:01:17]} 8. Bg5 {[%emt 0:03:26]} Nd4 {[%emt 0:05:36]} 9. Qd3 {[%emt 0:02:33]} Nxf3+ {[%emt 0:03:04]} 10. Qxf3 {[%emt 0:00:25]} Bd4 {[%emt 0:00:31]} 11. Bd3 {[%emt 0:05:17]} h6 {[%emt 0:06:35]} 12. Bh4 {[%emt 0:02:34]} Qa5 {[%emt 0:02:23]} 13. Rc1 {[%emt 0:05:54]} b6 {[%emt 0:08:15]} 14. O-O {[%emt 0:04:15]} Bb7 {[%emt 0:00:15]} 15. Qe2 {[%emt 0:03:44]} d5 {[%emt 0:13:22]} 16. Nb5 {[%emt 0:20:42]} dxe4 {[%emt 0:02:02]} 17. Bb1 {[%emt 0:00:25]} Rad8 {[%emt 0:09:56]} 18. a3 {[%emt 0:03:01]} Be5 {[%emt 0:01:59]} 19. b4 {[%emt 0:01:31]} Qa6 {[%emt 0:00:23]} 20. f4 {[%emt 0:00:45]} Bd4+ {[%emt 0:01:12]} 21. Kh1 {[%emt 0:01:48]} e3 {[%emt 0:01:50]} 22. Rcd1 {[%emt 0:01:13]} Ba1 {[%emt 0:10:02]} 23. Bd3 {[%emt 0:01:36]} Bc6 {[%emt 0:06:13]} 24. Rxa1 {[%emt 0:00:47]} Qb7 {[%emt 0:01:42]} 25. Rad1 {[%emt 0:00:24]} Rd7 {[%emt 0:04:21]} 26. Bc2 {[%emt 0:01:33]} Bxg2+ {[%emt 0:01:59]} 27. Qxg2 {[%emt 0:00:08]} e2 {[%emt 0:00:47]} 28. Qxb7 {[%emt 0:00:39]} exf1=Q+ {[%emt 0:00:39]} 29. Rxf1 {[%emt 0:00:01]} Rxb7 {[%emt 0:00:24]} 30. Bxf6 {[%emt 0:00:15]} gxf6 {[%emt 0:00:09]} 31. Rg1+ {[%emt 0:00:20]} Kh8 {[%emt 0:00:14]} 32. Rd1 {[%emt 0:00:04]} f5 {[%emt 0:01:54]} 33. Kg2 {[%emt 0:01:11]} Kh7 {[%emt 0:00:17]} 34. Kf3 {[%emt 0:00:22]} a6 {[%emt 0:00:15]} 35. Nc3 {[%emt 0:01:26]} Rc7 {[%emt 0:00:54]} 36. Bb3 {[%emt 0:00:14]} Rfc8 {[%emt 0:01:51]} 37. Rd6 {[%emt 0:01:53]} Rb7 {[%emt 0:01:32]} 38. Na4 {[%emt 0:00:31]} Rcb8 {[%emt 0:03:16]} 39. Ke3 {[%emt 0:00:21]} Kg7 {[%emt 0:00:32]} 40. Bd1 {[%emt 0:00:26]} Kf6 {[%emt 0:00:08]} 41. Bf3 {[%emt 0:00:14]} Ke7 {[%emt 0:00:15]} 42. Bxb7 {[%emt 0:00:29]} Kxd6 {[%emt 0:00:15]} 43. Bxa6 {[%emt 0:00:03]} Kc7 {[%emt 0:00:25]} 44. c5 {[%emt 0:00:38]} b5 {[%emt 0:00:55]} 45. Nc3 {[%emt 0:02:08]} Ra8 {[%emt 0:00:24]} 46. Bxb5 {[%emt 0:00:08]} Rxa3 {[%emt 0:00:06]} 47. Kd4 {[%emt 0:00:03]} Ra1 {[%emt 0:00:41]} 48. Be2 {[%emt 0:00:46]} f6 {[%emt 0:00:40]} 49. b5 {[%emt 0:00:12]} Rc1 {[%emt 0:00:55]} 50. b6+ {[%emt 0:00:06]} Kb8 {[%emt 0:00:05]} 51. c6 {[%emt 0:00:51]} e5+ {[%emt 0:00:58]} 52. Kd3 {[%emt 0:00:56]} Ra1 {[%emt 0:00:33]} 53. c7+ {[%emt 0:01:27]} Kb7 {[%emt 0:00:03]} 54. Bf3+ {[%emt 0:00:08]} Kc8 {[%emt 0:00:27]} 55. Nb5 {[%emt 0:00:31]} e4+ {[%emt 0:00:20]} 56. Ke3 {[%emt 0:00:31]} Ra8 {[%emt 0:01:33]} 57. Na7+ {[%emt 0:00:26]} Kb7 {[%emt 0:00:43]} 58. c8=Q+ {[%emt 0:00:21]} Rxc8 {[%emt 0:00:11]} 59. Nxc8 {[%emt 0:00:02]} Kxc8 {[%emt 0:00:13]} 60. Bxe4 {[%emt 0:00:10]} Kd7 {[%emt 0:00:29]} 1-0

[Event "48th Indian U15-ch Open 2023"]
[Site "Jalgaon"]
[Date "2023.12.28"]
[Round "2.10"]
[White "Bharat Bansal"]
[Black "Arshpreet Singh"]
[Result "0-1"]
[WhiteElo "1602"]
[BlackElo "1878"]
[PlyCount "55"]
[EventDate "2023.12.30"]
[EventType "swiss"]
[EventCountry "IND"]
[TimeControl "5400+30"]
[BlackClock "0:00:39"]

1. e4 {[%emt 0:00:04]} c5 {[%emt 0:00:17]} 2. Nf3 {[%emt 0:00:06]} Nc6 {[%emt 0:00:03]} 3. d4 {[%emt 0:00:11]} cxd4 {[%emt 0:00:07]} 4. Nxd4 {[%emt 0:00:05]} g6 {[%emt 0:00:02]} 5. c4 {[%emt 0:03:14]} Bg7 {[%emt 0:00:05]} 6. Be3 {[%emt 0:03:13]} Nf6 {[%emt 0:00:01]} 7. Nc3 {[%emt 0:00:13]} O-O {[%emt 0:00:04]} 8. Be2 {[%emt 0:00:35]} d6 {[%emt 0:00:50]} 9. O-O {[%emt 0:01:01]} Nd7 {[%emt 0:04:39]} 10. Qd2 {[%emt 0:03:55]} Nc5 {[%emt 0:01:58]} 11. Rfd1 {[%emt 0:03:48]} Be6 {[%emt 0:07:28]} 12. Rac1 {[%emt 0:07:23]} Rc8 {[%emt 0:03:59]} 13. f3 {[%emt 0:06:47]} Qb6 {[%emt 0:11:39]} 14. Nxe6 {[%emt 0:27:37]} fxe6 {[%emt 0:00:05]} 15. Na4 {[%emt 0:03:41]} Qc7 {[%emt 0:00:02]} 16. Nc3 {[%emt 0:11:25]} Qa5 {[%emt 0:26:47]} 17. Kh1 {[%emt 0:05:42]} Bf6 {[%emt 0:22:37]} 18. Bf1 {[%emt 0:19:04]} a6 {[%emt 0:05:47]} 19. Qf2 {[%emt 0:01:22]} Bxc3 {[%emt 0:01:59]} 20. bxc3 {[%emt 0:00:26]} Nxe4 {[%emt 0:04:04]} 21. Qe1 {[%emt 0:00:15]} Nc5 {[%emt 0:05:58]} 22. Bxc5 {[%emt 0:00:36]} Qxc5 {[%emt 0:00:01]} 23. Qxe6+ {[%emt 0:00:09]} Kh8 {[%emt 0:01:28]} 24. Rd5 {[%emt 0:00:23]} Qa3 {[%emt 0:01:43]} 25. Rcd1 {[%emt 0:01:13]} Qxc3 {[%emt 0:00:30]} 26. Bd3 {[%emt 0:00:30]} Nb4 {[%emt 0:00:38]} 27. Qe2 {[%emt 0:01:02]} Nc6 {[%emt 0:00:30]} 28. Rb1 0-1

[Event "48th Indian U15-ch Open 2023"]
[Site "Jalgaon"]
[Date "2023.12.28"]
[Round "3.1"]
[White "Mayank Chakraborty"]
[Black "Rohith S"]
[Result "1-0"]
[WhiteElo "2403"]
[BlackElo "1757"]
[PlyCount "63"]
[EventDate "2023.12.30"]
[EventType "swiss"]
[EventCountry "IND"]
[TimeControl "5400+30"]

1. d4 {[%emt 0:00:01]} Nf6 {[%emt 0:01:07]} 2. c4 {[%emt 0:00:04]} g6 {[%emt 0:00:09]} 3. g3 {[%emt 0:00:04]} Bg7 {[%emt 0:00:05]} 4. Bg2 {[%emt 0:00:04]} O-O {[%emt 0:00:15]} 5. Nc3 {[%emt 0:00:02]} d6 {[%emt 0:00:13]} 6. Nf3 {[%emt 0:00:02]} Nbd7 {[%emt 0:01:25]} 7. O-O {[%emt 0:00:02]} e5 {[%emt 0:00:13]} 8. e4 {[%emt 0:00:02]} a6 {[%emt 0:02:36]} 9. h3 {[%emt 0:00:58]} b5 {[%emt 0:04:38]} 10. cxb5 {[%emt 0:02:22]} axb5 {[%emt 0:00:11]} 11. b4 {[%emt 0:02:40]} Nb6 {[%emt 0:15:57]} 12. Qc2 {[%emt 0:12:43]} Nfd7 {[%emt 0:18:00]} 13. Rd1 {[%emt 0:07:14]} Ba6 {[%emt 0:09:15]} 14. d5 {[%emt 0:13:55]} Qc8 {[%emt 0:10:36]} 15. Bf1 {[%emt 0:02:29]} c6 {[%emt 0:02:58]} 16. dxc6 {[%emt 0:00:05]} Qxc6 {[%emt 0:00:08]} 17. a4 {[%emt 0:05:42]} Rfc8 {[%emt 0:06:03]} 18. axb5 {[%emt 0:00:22]} Qxc3 {[%emt 0:01:19]} 19. Qxc3 {[%emt 0:00:03]} Rxc3 {[%emt 0:00:07]} 20. bxa6 {[%emt 0:00:08]} Rxf3 {[%emt 0:00:28]} 21. Be3 {[%emt 0:00:02]} Rf6 {[%emt 0:13:46]} 22. Bb5 {[%emt 0:00:58]} Re6 {[%emt 0:07:11]} 23. a7 {[%emt 0:01:57]} Bf8 {[%emt 0:02:49]} 24. Bc6 {[%emt 0:00:16]} Be7 {[%emt 0:02:23]} 25. Ra6 {[%emt 0:00:08]} Bd8 {[%emt 0:00:25]} 26. Bxa8 {[%emt 0:00:05]} Nxa8 {[%emt 0:00:07]} 27. Raxd6 {[%emt 0:00:04]} Rxd6 {[%emt 0:00:21]} 28. Rxd6 {[%emt 0:00:02]} Bb6 {[%emt 0:00:40]} 29. Rxd7 {[%emt 0:00:07]} Bxe3 {[%emt 0:00:06]} 30. Rd8+ {[%emt 0:00:13]} Kg7 {[%emt 0:00:06]} 31. fxe3 {[%emt 0:00:03]} Nb6 {[%emt 0:00:20]} 32. Rb8 {[%emt 0:00:05]} 1-0

[Event "48th Indian U15-ch Open 2023"]
[Site "Jalgaon"]
[Date "2023.12.28"]
[Round "3.2"]
[White "Pranay Akula"]
[Black "Shaik Sumer Arsh"]
[Result "0-1"]
[WhiteElo "1712"]
[BlackElo "2255"]
[PlyCount "86"]
[EventDate "2023.12.30"]
[EventType "swiss"]
[EventCountry "IND"]
[TimeControl "5400+30"]

1. e4 {[%emt 0:00:02]} e6 {[%emt 0:00:09]} 2. d4 {[%emt 0:00:29]} d5 {[%emt 0:00:04]} 3. Nc3 {[%emt 0:03:58]} Nf6 {[%emt 0:00:22]} 4. Bg5 {[%emt 0:00:28]} dxe4 {[%emt 0:00:07]} 5. Nxe4 {[%emt 0:00:17]} Be7 {[%emt 0:00:05]} 6. Bxf6 {[%emt 0:03:07]} gxf6 {[%emt 0:00:06]} 7. Nf3 {[%emt 0:00:22]} f5 {[%emt 0:01:49]} 8. Ng3 {[%emt 0:05:40]} h5 {[%emt 0:06:01]} 9. h4 {[%emt 0:03:09]} Nd7 {[%emt 0:16:52]} 10. Be2 {[%emt 0:05:21]} Nf6 {[%emt 0:03:23]} 11. Qd2 {[%emt 0:08:35]} Ng4 {[%emt 0:02:05]} 12. Bd3 {[%emt 0:06:14]} Qd6 {[%emt 0:13:15]} 13. O-O-O {[%emt 0:13:18]} Bd7 {[%emt 0:01:13]} 14. Kb1 {[%emt 0:04:26]} O-O-O {[%emt 0:00:40]} 15. Qe2 {[%emt 0:09:07]} Bf6 {[%emt 0:03:47]} 16. c3 {[%emt 0:01:29]} Kb8 {[%emt 0:10:43]} 17. Nf1 {[%emt 0:05:46]} c5 {[%emt 0:04:55]} 18. Bc2 {[%emt 0:02:26]} Qb6 {[%emt 0:07:53]} 19. Ne3 {[%emt 0:13:07]} Bb5 {[%emt 0:12:17]} 20. Bd3 {[%emt 0:01:53]} cxd4 {[%emt 0:05:07]} 21. cxd4 {[%emt 0:06:48]} Bc6 {[%emt 0:03:12]} 22. Nc4 {[%emt 0:04:23]} Qc7 {[%emt 0:00:23]} 23. Nce5 {[%emt 0:00:46]} Nxe5 {[%emt 0:02:18]} 24. dxe5 {[%emt 0:00:14]} Bxf3 {[%emt 0:00:11]} 25. Qxf3 {[%emt 0:00:33]} Qxe5 {[%emt 0:00:28]} 26. Qe2 {[%emt 0:00:06]} Qf4 {[%emt 0:00:31]} 27. g3 {[%emt 0:00:22]} Qb4 {[%emt 0:00:28]} 28. a3 {[%emt 0:00:35]} Qb6 {[%emt 0:00:28]} 29. Bc4 {[%emt 0:00:55]} Rc8 {[%emt 0:00:46]} 30. Rd2 {[%emt 0:00:56]} Qc6 {[%emt 0:02:17]} 31. Rc1 {[%emt 0:00:04]} b5 {[%emt 0:00:21]} 32. Rdc2 {[%emt 0:01:00]} bxc4 {[%emt 0:00:02]} 33. Rxc4 {[%emt 0:00:06]} Qd5 {[%emt 0:00:16]} 34. Rb4+ {[%emt 0:00:05]} Ka8 {[%emt 0:00:01]} 35. Rd1 {[%emt 0:00:41]} Qc6 {[%emt 0:00:02]} 36. Ka2 {[%emt 0:01:08]} Rb8 {[%emt 0:00:56]} 37. Rc1 {[%emt 0:00:31]} Qd5+ {[%emt 0:00:03]} 38. Ka1 {[%emt 0:00:31]} Rxb4 {[%emt 0:00:26]} 39. axb4 {[%emt 0:00:05]} Rb8 {[%emt 0:00:58]} 40. Qa6 {[%emt 0:00:53]} Rxb4 {[%emt 0:00:23]} 41. Rc8+ {[%emt 0:00:32]} Rb8 {[%emt 0:00:02]} 42. Rc2 {[%emt 0:00:31]} Qd1+ {[%emt 0:00:08]} 43. Ka2 {[%emt 0:00:02]} Qxc2 {[%emt 0:00:28]} 0-1

[Event "48th Indian U15-ch Open 2023"]
[Site "Jalgaon"]
[Date "2023.12.28"]
[Round "3.3"]
[White "Md Imran"]
[Black "Vatsal Singla"]
[Result "1-0"]
[WhiteElo "2174"]
[BlackElo "1714"]
[PlyCount "57"]
[EventDate "2023.12.30"]
[EventType "swiss"]
[EventCountry "IND"]
[TimeControl "5400+30"]

1. c4 {[%emt 0:01:40]} e6 {[%emt 0:00:08]} 2. g3 {[%emt 0:00:20]} d5 {[%emt 0:00:09]} 3. Bg2 {[%emt 0:00:16]} c6 {[%emt 0:00:07]} 4. Qc2 {[%emt 0:03:24]} Nf6 {[%emt 0:07:38]} 5. Nf3 {[%emt 0:00:21]} Bd6 {[%emt 0:01:07]} 6. O-O {[%emt 0:00:10]} e5 {[%emt 0:03:08]} 7. d4 {[%emt 0:04:03]} e4 {[%emt 0:04:25]} 8. Ne5 {[%emt 0:02:21]} Nbd7 {[%emt 0:01:54]} 9. Bf4 {[%emt 0:00:36]} Qe7 {[%emt 0:01:32]} 10. Nxd7 {[%emt 0:03:09]} Bxd7 {[%emt 0:00:25]} 11. Bg5 {[%emt 0:01:33]} O-O {[%emt 0:18:26]} 12. Nc3 {[%emt 0:00:19]} Be6 {[%emt 0:00:14]} 13. cxd5 {[%emt 0:05:41]} cxd5 {[%emt 0:00:15]} 14. f3 {[%emt 0:00:28]} h6 {[%emt 0:00:38]} 15. Bxf6 {[%emt 0:00:08]} Qxf6 {[%emt 0:00:02]} 16. Qd2 {[%emt 0:10:11]} exf3 {[%emt 0:01:05]} 17. Bxf3 {[%emt 0:00:07]} Qd8 {[%emt 0:01:23]} 18. Bxd5 {[%emt 0:01:44]} Bxd5 {[%emt 0:14:59]} 19. Nxd5 {[%emt 0:00:02]} Bxg3 {[%emt 0:00:28]} 20. Nf6+ {[%emt 0:00:06]} gxf6 {[%emt 0:00:22]} 21. hxg3 {[%emt 0:00:06]} Kg7 {[%emt 0:00:07]} 22. Rf5 {[%emt 0:03:16]} Qc7 {[%emt 0:07:44]} 23. Kf2 {[%emt 0:01:38]} Rac8 {[%emt 0:02:40]} 24. Rh1 {[%emt 0:00:26]} Rh8 {[%emt 0:00:07]} 25. Rh4 {[%emt 0:00:57]} Kg6 {[%emt 0:18:41]} 26. Qd3 {[%emt 0:02:02]} Qc2 {[%emt 0:01:44]} 27. Rg4+ {[%emt 0:00:17]} Kh7 {[%emt 0:00:06]} 28. Rfg5+ {[%emt 0:00:15]} Qxd3 {[%emt 0:00:09]} 29. Rg7# {[%emt 0:00:01]} 1-0